[Event "*** Biggest EVER Titled Tuesday"]
[Site "Chess.com"]
[Date "2018.04.17"]
[Round "3"]
[White "ehrenfeld"]
[Black "Anar_Aliakbarov"]
[Result "1-0"]
[WhiteElo "2474"]
[BlackElo "2392"]
[TimeControl "180+2"]
[EndTime "13:35:14 PDT"]
[Termination "ehrenfeld won by resignation"]

1. e4 {[%clk 0:03:01.4]} 1... c5 {[%clk 0:03:00.2]} 2. Nf3 {[%clk 0:03:00.6]}
2... e6 {[%clk 0:02:59.8]} 3. b3 {[%clk 0:03:00.4]} 3... Nf6 {[%clk 0:02:58.9]}
4. e5 {[%clk 0:02:59.2]} 4... Nd5 {[%clk 0:02:59.9]} 5. Bb2 {[%clk 0:02:57]}
5... Be7 {[%clk 0:03:00.5]} 6. g3 {[%clk 0:02:48.9]} 6... O-O {[%clk 0:02:59.3]}
7. Bg2 {[%clk 0:02:49.9]} 7... Nc6 {[%clk 0:02:57.7]} 8. O-O {[%clk 0:02:49.9]}
8... d6 {[%clk 0:02:57.7]} 9. exd6 {[%clk 0:02:44.2]} 9... Bf6 {[%clk
0:02:57.3]} 10. Nc3 {[%clk 0:02:37.4]} 10... Qxd6 {[%clk 0:02:38.1]} 11. Ne4
{[%clk 0:02:37.2]} 11... Qe7 {[%clk 0:02:39.3]} 12. Nxf6+ {[%clk 0:02:36.6]}
12... Nxf6 {[%clk 0:02:41.2]} 13. Ne5 {[%clk 0:02:31.8]} 13... Nxe5 {[%clk
0:02:41.2]} 14. Bxe5 {[%clk 0:02:31.9]} 14... Nd7 {[%clk 0:02:15.7]} 15. Bb2
{[%clk 0:02:32.2]} 15... Rb8 {[%clk 0:02:16.7]} 16. d4 {[%clk 0:02:31.2]} 16...
b6 {[%clk 0:02:07.9]} 17. Re1 {[%clk 0:02:27]} 17... cxd4 {[%clk 0:01:43.4]} 18.
Qxd4 {[%clk 0:02:27]} 18... Nf6 {[%clk 0:01:40.1]} 19. Rad1 {[%clk 0:01:57.6]}
19... Bb7 {[%clk 0:01:37.1]} 20. Qd6 {[%clk 0:01:55.8]} 20... Qxd6 {[%clk
0:01:34.9]} 21. Rxd6 {[%clk 0:01:56.7]} 21... Bxg2 {[%clk 0:01:36.3]} 22. Kxg2
{[%clk 0:01:57.8]} 22... Rfd8 {[%clk 0:01:37.6]} 23. Red1 {[%clk 0:01:58.4]}
23... Nd5 {[%clk 0:01:33.4]} 24. Rxd8+ {[%clk 0:01:57.7]} 24... Rxd8 {[%clk
0:01:34.1]} 25. Kf3 {[%clk 0:01:57.8]} 25... Rc8 {[%clk 0:01:21.2]} 26. c4
{[%clk 0:01:58.2]} 26... Nc7 {[%clk 0:01:21.4]} 27. Rd7 {[%clk 0:01:56.4]} 27...
f6 {[%clk 0:01:06.3]} 28. Ba3 {[%clk 0:01:49.7]} 28... e5 {[%clk 0:00:57.9]} 29.
Ke4 {[%clk 0:01:49.1]} 29... g6 {[%clk 0:00:45.8]} 30. h4 {[%clk 0:01:31.7]}
30... h5 {[%clk 0:00:39.9]} 31. f3 {[%clk 0:01:30.3]} 31... b5 {[%clk
0:00:30.8]} 32. Bd6 {[%clk 0:01:18]} 32... Ne8 {[%clk 0:00:22.5]} 33. Kd5 {[%clk
0:01:16.3]} 33... bxc4 {[%clk 0:00:21.9]} 34. bxc4 {[%clk 0:01:16.6]} 34... Nxd6
{[%clk 0:00:15]} 35. Rxd6 {[%clk 0:01:17.4]} 35... Rb8 {[%clk 0:00:08.5]} 36.
Rxf6 {[%clk 0:01:17.2]} 36... Rb2 {[%clk 0:00:10]} 37. Rxg6+ {[%clk 0:01:10.7]}
37... Kf7 {[%clk 0:00:11.1]} 38. Ra6 {[%clk 0:01:11.3]} 38... Rf2 {[%clk
0:00:12]} 39. Rxa7+ {[%clk 0:01:11]} 39... Kf6 {[%clk 0:00:13.5]} 40. Ra3 {[%clk
0:01:06.2]} 40... Rg2 {[%clk 0:00:11.6]} 41. c5 {[%clk 0:01:05]} 41... Rxg3
{[%clk 0:00:11.7]} 42. c6 {[%clk 0:01:05.3]} 42... Rg8 {[%clk 0:00:13]} 43. c7
{[%clk 0:01:05.2]} 43... Rc8 {[%clk 0:00:12.5]} 44. Kd6 {[%clk 0:01:05.5]} 1-0

[Event "*** Biggest EVER Titled Tuesday"]
[Site "Chess.com"]
[Date "2018.04.17"]
[Round "3"]
[White "Ravan_02"]
[Black "nurmiTV"]
[Result "1-0"]
[WhiteElo "2457"]
[BlackElo "2461"]
[TimeControl "180+2"]
[EndTime "13:35:19 PDT"]
[Termination "Ravan_02 won by resignation"]

1. e4 {[%clk 0:02:59.8]} 1... c5 {[%clk 0:02:58.5]} 2. Nc3 {[%clk 0:02:59.6]}
2... Nc6 {[%clk 0:02:57.5]} 3. g3 {[%clk 0:02:59.4]} 3... g6 {[%clk 0:02:57.8]}
4. Bg2 {[%clk 0:02:59.7]} 4... Bg7 {[%clk 0:02:59.3]} 5. d3 {[%clk 0:03:00.7]}
5... e6 {[%clk 0:03:00.8]} 6. Nge2 {[%clk 0:03:01.3]} 6... Nge7 {[%clk
0:03:02.2]} 7. Be3 {[%clk 0:03:01.9]} 7... Nd4 {[%clk 0:02:59.7]} 8. Qd2 {[%clk
0:03:00]} 8... d6 {[%clk 0:02:53]} 9. O-O {[%clk 0:03:00.4]} 9... O-O {[%clk
0:02:49.1]} 10. Rab1 {[%clk 0:03:01.5]} 10... Nec6 {[%clk 0:02:48]} 11. a3
{[%clk 0:03:01.6]} 11... a5 {[%clk 0:02:37.7]} 12. Nd1 {[%clk 0:02:54.4]} 12...
b5 {[%clk 0:02:32.2]} 13. c3 {[%clk 0:02:54.8]} 13... Nxe2+ {[%clk 0:02:29.9]}
14. Qxe2 {[%clk 0:02:56.7]} 14... Bb7 {[%clk 0:02:23.5]} 15. Qd2 {[%clk
0:02:51.8]} 15... Ne5 {[%clk 0:02:02.9]} 16. h3 {[%clk 0:02:49.6]} 16... Re8
{[%clk 0:01:42.2]} 17. f4 {[%clk 0:02:48.1]} 17... Nd7 {[%clk 0:01:37.9]} 18. g4
{[%clk 0:02:49.1]} 18... Qe7 {[%clk 0:01:27.5]} 19. Nf2 {[%clk 0:02:36.4]} 19...
d5 {[%clk 0:01:13.3]} 20. e5 {[%clk 0:02:37.2]} 20... f6 {[%clk 0:01:10.9]} 21.
d4 {[%clk 0:02:37.5]} 21... Rac8 {[%clk 0:01:07.5]} 22. Rbe1 {[%clk 0:02:28.9]}
22... Ba6 {[%clk 0:01:00]} 23. f5 {[%clk 0:02:25.1]} 23... fxe5 {[%clk
0:00:52.8]} 24. Bg5 {[%clk 0:02:05.7]} 24... Qd6 {[%clk 0:00:35.9]} 25. fxe6
{[%clk 0:01:57.7]} 25... Nb6 {[%clk 0:00:30.7]} 26. dxe5 {[%clk 0:01:31.6]}
26... Bxe5 {[%clk 0:00:32.6]} 27. Nd3 {[%clk 0:01:32.8]} 27... Bh2+ {[%clk
0:00:17.3]} 28. Kh1 {[%clk 0:01:32.4]} 28... Bg3 {[%clk 0:00:19.2]} 29. Re2
{[%clk 0:01:32.3]} 29... b4 {[%clk 0:00:19.6]} 30. e7 {[%clk 0:01:18.1]} 30...
Bb7 {[%clk 0:00:17.6]} 31. axb4 {[%clk 0:01:14.3]} 31... axb4 {[%clk 0:00:18.3]}
32. cxb4 {[%clk 0:01:14.7]} 32... cxb4 {[%clk 0:00:19.5]} 33. Nxb4 {[%clk
0:01:12.5]} 33... Ba8 {[%clk 0:00:17.9]} 34. Qd4 {[%clk 0:01:08.4]} 34... Rc4
{[%clk 0:00:15.3]} 35. Rf8+ {[%clk 0:00:56.6]} 35... Rxf8 {[%clk 0:00:16.2]} 36.
exf8=Q+ {[%clk 0:00:57]} 36... Qxf8 {[%clk 0:00:16.5]} 37. Qxb6 {[%clk
0:00:56.3]} 37... Rxb4 {[%clk 0:00:17.6]} 38. Qe6+ {[%clk 0:00:55.9]} 38... Qf7
{[%clk 0:00:16.9]} 39. Qc8+ {[%clk 0:00:54.5]} 39... Qf8 {[%clk 0:00:17.6]} 40.
Re8 {[%clk 0:00:52.2]} 40... Bd6 {[%clk 0:00:11.8]} 41. Rxf8+ {[%clk 0:00:48.7]}
41... Bxf8 {[%clk 0:00:13.7]} 42. Qxa8 {[%clk 0:00:49.9]} 1-0

[Event "*** Biggest EVER Titled Tuesday"]
[Site "Chess.com"]
[Date "2018.04.17"]
[Round "3"]
[White "murmah2003"]
[Black "Noukii"]
[Result "1-0"]
[WhiteElo "2550"]
[BlackElo "2634"]
[TimeControl "180+2"]
[EndTime "13:35:24 PDT"]
[Termination "murmah2003 won by checkmate"]

1. d4 {[%clk 0:02:56.3]} 1... d5 {[%clk 0:02:58.8]} 2. Nf3 {[%clk 0:02:56.7]}
2... Nf6 {[%clk 0:02:59.8]} 3. c4 {[%clk 0:02:57]} 3... c6 {[%clk 0:03:01.1]} 4.
e3 {[%clk 0:02:55.5]} 4... a6 {[%clk 0:03:01.7]} 5. Nc3 {[%clk 0:02:55.6]} 5...
e6 {[%clk 0:03:03.2]} 6. Qc2 {[%clk 0:02:36.9]} 6... Nbd7 {[%clk 0:02:58.5]} 7.
b3 {[%clk 0:02:24.4]} 7... Bb4 {[%clk 0:02:59.6]} 8. Bb2 {[%clk 0:02:22.8]} 8...
O-O {[%clk 0:02:54.2]} 9. Bd3 {[%clk 0:02:13.1]} 9... Qe7 {[%clk 0:02:49.7]} 10.
O-O {[%clk 0:02:04.2]} 10... Re8 {[%clk 0:02:32.8]} 11. e4 {[%clk 0:02:00]}
11... dxc4 {[%clk 0:02:33.7]} 12. Bxc4 {[%clk 0:01:58.4]} 12... b5 {[%clk
0:02:10.5]} 13. Bd3 {[%clk 0:01:47.9]} 13... e5 {[%clk 0:02:11.7]} 14. dxe5
{[%clk 0:01:44.9]} 14... Ng4 {[%clk 0:02:13]} 15. Ne2 {[%clk 0:01:14.1]} 15...
Ndxe5 {[%clk 0:01:26.2]} 16. Nxe5 {[%clk 0:00:53.1]} 16... Nxe5 {[%clk
0:01:28.1]} 17. Bxe5 {[%clk 0:00:54.6]} 17... Qxe5 {[%clk 0:01:29]} 18. Qxc6
{[%clk 0:00:56]} 18... Be6 {[%clk 0:01:26.8]} 19. f4 {[%clk 0:00:39.5]} 19...
Qb8 {[%clk 0:01:15.2]} 20. e5 {[%clk 0:00:28.9]} 20... Qa7+ {[%clk 0:01:06.9]}
21. Kh1 {[%clk 0:00:26.4]} 21... Ba3 {[%clk 0:00:30.1]} 22. f5 {[%clk
0:00:22.4]} 22... Bd7 {[%clk 0:00:24]} 23. Qe4 {[%clk 0:00:21.8]} 23... Qc5
{[%clk 0:00:20.4]} 24. e6 {[%clk 0:00:13.8]} 24... Bc6 {[%clk 0:00:21.4]} 25.
Qg4 {[%clk 0:00:07.6]} 25... f6 {[%clk 0:00:19.1]} 26. Be4 {[%clk 0:00:07.8]}
26... Rad8 {[%clk 0:00:18.7]} 27. Bxc6 {[%clk 0:00:08]} 27... Qxc6 {[%clk
0:00:20.6]} 28. Rad1 {[%clk 0:00:09.1]} 28... Qc2 {[%clk 0:00:20.5]} 29. Ng3
{[%clk 0:00:09.5]} 29... Bf8 {[%clk 0:00:17.6]} 30. Rxd8 {[%clk 0:00:06.4]}
30... Rxd8 {[%clk 0:00:18.5]} 31. Nh5 {[%clk 0:00:08]} 31... Qc7 {[%clk
0:00:19.3]} 32. h3 {[%clk 0:00:07]} 32... Kh8 {[%clk 0:00:20.6]} 33. Re1 {[%clk
0:00:07.4]} 33... Be7 {[%clk 0:00:21.8]} 34. Qxg7# {[%clk 0:00:07.3]} 1-0

[Event "*** Biggest EVER Titled Tuesday"]
[Site "Chess.com"]
[Date "2018.04.17"]
[Round "3"]
[White "ENEASZ"]
[Black "Yaacovn"]
[Result "0-1"]
[WhiteElo "2468"]
[BlackElo "2660"]
[TimeControl "180+2"]
[EndTime "13:35:25 PDT"]
[Termination "Yaacovn won by resignation"]

1. e4 {[%clk 0:03:01.9]} 1... c6 {[%clk 0:03:01.1]} 2. d3 {[%clk 0:02:59.6]}
2... d5 {[%clk 0:03:03]} 3. Nd2 {[%clk 0:03:01]} 3... g6 {[%clk 0:03:04.1]} 4.
Ngf3 {[%clk 0:03:02]} 4... Bg7 {[%clk 0:03:05.5]} 5. g3 {[%clk 0:03:03.4]} 5...
Bg4 {[%clk 0:03:06.2]} 6. Bg2 {[%clk 0:03:04.4]} 6... e6 {[%clk 0:03:07.6]} 7.
O-O {[%clk 0:03:05.4]} 7... Nf6 {[%clk 0:03:09.1]} 8. Re1 {[%clk 0:03:05.1]}
8... Nfd7 {[%clk 0:03:09.8]} 9. h3 {[%clk 0:03:05]} 9... Bxf3 {[%clk 0:03:10.8]}
10. Nxf3 {[%clk 0:03:06.7]} 10... O-O {[%clk 0:03:12.5]} 11. c3 {[%clk
0:03:07.3]} 11... c5 {[%clk 0:03:13.4]} 12. exd5 {[%clk 0:03:06.9]} 12... exd5
{[%clk 0:03:15.3]} 13. d4 {[%clk 0:03:08.4]} 13... cxd4 {[%clk 0:03:15.4]} 14.
Nxd4 {[%clk 0:03:10.3]} 14... Nf6 {[%clk 0:03:15.8]} 15. Bg5 {[%clk 0:03:10.2]}
15... Nc6 {[%clk 0:03:17]} 16. Nb3 {[%clk 0:03:03.9]} 16... Qb6 {[%clk
0:03:17.6]} 17. Bxf6 {[%clk 0:03:01.6]} 17... Bxf6 {[%clk 0:03:18.6]} 18. Qxd5
{[%clk 0:03:02.3]} 18... Rad8 {[%clk 0:03:13.2]} 19. Qc5 {[%clk 0:02:56.9]}
19... Qa6 {[%clk 0:03:09.2]} 20. Bf1 {[%clk 0:02:41.3]} 20... Qb6 {[%clk
0:03:04.8]} 21. Qxb6 {[%clk 0:02:41.9]} 21... axb6 {[%clk 0:03:06.7]} 22. Rad1
{[%clk 0:02:43.2]} 22... Kg7 {[%clk 0:03:05.8]} 23. Bg2 {[%clk 0:02:40.7]} 23...
Na5 {[%clk 0:03:02.1]} 24. Nxa5 {[%clk 0:02:34.6]} 24... bxa5 {[%clk 0:03:04]}
25. Bxb7 {[%clk 0:02:35.5]} 25... Rb8 {[%clk 0:02:55.8]} 26. Rd7 {[%clk
0:01:47.6]} 26... Rfd8 {[%clk 0:02:53]} 27. Red1 {[%clk 0:01:24.7]} 27... Rxb7
{[%clk 0:02:52.6]} 28. Rxd8 {[%clk 0:01:26.1]} 28... Bxd8 {[%clk 0:02:54.1]} 29.
Rxd8 {[%clk 0:01:27.6]} 29... Rxb2 {[%clk 0:02:55.6]} 30. a4 {[%clk 0:01:28.6]}
30... Ra2 {[%clk 0:02:55.5]} 31. Rd4 {[%clk 0:01:27.5]} 31... Ra3 {[%clk
0:02:53.4]} 32. Kg2 {[%clk 0:01:26.8]} 32... h5 {[%clk 0:02:50.3]} 33. h4 {[%clk
0:01:27.7]} 33... Kf6 {[%clk 0:02:51.1]} 34. Rc4 {[%clk 0:01:06.7]} 34... Ke6
{[%clk 0:02:32.2]} 35. Kf3 {[%clk 0:01:01.8]} 35... Kd5 {[%clk 0:02:26.8]} 36.
Rc7 {[%clk 0:01:02.6]} 36... Ke6 {[%clk 0:02:25.4]} 37. Rc4 {[%clk 0:01:01.9]}
37... Kd5 {[%clk 0:02:26.5]} 38. Rc7 {[%clk 0:01:02.9]} 38... Ke6 {[%clk
0:02:23.8]} 39. Rc4 {[%clk 0:00:51.2]} 39... Kd5 {[%clk 0:02:24.7]} 40. Rc7
{[%clk 0:00:49.5]} 40... f6 {[%clk 0:02:25.3]} 41. Ke3 {[%clk 0:00:41.8]} 41...
Rxa4 {[%clk 0:02:22.9]} 42. Rg7 {[%clk 0:00:38.3]} 42... Rg4 {[%clk 0:02:23.6]}
43. Kd3 {[%clk 0:00:31.7]} 43... Kc5 {[%clk 0:02:17.5]} 44. Rf7 {[%clk
0:00:32.1]} 44... f5 {[%clk 0:02:14.6]} 45. Rf8 {[%clk 0:00:19.8]} 45... f4
{[%clk 0:02:10.8]} 46. gxf4 {[%clk 0:00:17.8]} 46... Rxh4 {[%clk 0:02:12]} 47.
Ke4 {[%clk 0:00:19.3]} 47... Kc4 {[%clk 0:02:03.8]} 48. Ke5 {[%clk 0:00:17.4]}
48... Kxc3 {[%clk 0:02:01.6]} 49. Rf6 {[%clk 0:00:15.9]} 49... Rg4 {[%clk
0:02:01]} 50. Ra6 {[%clk 0:00:14.5]} 50... Kb4 {[%clk 0:02:01.4]} 51. f3 {[%clk
0:00:08]} 51... Rg3 {[%clk 0:02:01.7]} 52. Ke4 {[%clk 0:00:09]} 52... a4 {[%clk
0:02:01.2]} 53. f5 {[%clk 0:00:10.5]} 53... gxf5+ {[%clk 0:02:02.1]} 54. Kf4
{[%clk 0:00:12.1]} 54... Rh3 {[%clk 0:02:01.4]} 55. Ra8 {[%clk 0:00:09.9]} 55...
a3 {[%clk 0:02:01.8]} 56. Kxf5 {[%clk 0:00:06.3]} 56... Rxf3+ {[%clk 0:02:02.4]}
57. Kg5 {[%clk 0:00:07.8]} 57... Rh3 {[%clk 0:02:03.2]} 58. Rb8+ {[%clk
0:00:07.7]} 58... Kc3 {[%clk 0:02:04.4]} 59. Ra8 {[%clk 0:00:08.5]} 59... Kb2
{[%clk 0:02:05.8]} 60. Kf4 {[%clk 0:00:09.8]} 60... a2 {[%clk 0:02:06.3]} 61.
Rxa2+ {[%clk 0:00:10.3]} 61... Kxa2 {[%clk 0:02:07.1]} 0-1

[Event "*** Biggest EVER Titled Tuesday"]
[Site "Chess.com"]
[Date "2018.04.17"]
[Round "3"]
[White "chessking2151"]
[Black "Arash_Tahbaz"]
[Result "0-1"]
[WhiteElo "2379"]
[BlackElo "2543"]
[TimeControl "180+2"]
[EndTime "13:35:32 PDT"]
[Termination "Arash_Tahbaz won by checkmate"]

1. d4 {[%clk 0:03:01.9]} 1... Nf6 {[%clk 0:02:59.7]} 2. c4 {[%clk 0:03:02.5]}
2... e6 {[%clk 0:03:00.8]} 3. Nc3 {[%clk 0:02:58.5]} 3... Bb4 {[%clk 0:03:00.9]}
4. Qc2 {[%clk 0:02:58.4]} 4... O-O {[%clk 0:03:00.6]} 5. a3 {[%clk 0:02:59.3]}
5... Bxc3+ {[%clk 0:03:00.8]} 6. Qxc3 {[%clk 0:03:01.2]} 6... b6 {[%clk
0:03:01.1]} 7. Bg5 {[%clk 0:03:01.6]} 7... Bb7 {[%clk 0:03:01.5]} 8. f3 {[%clk
0:03:01.5]} 8... h6 {[%clk 0:03:02.9]} 9. Bh4 {[%clk 0:02:57.7]} 9... d5 {[%clk
0:03:03.9]} 10. e3 {[%clk 0:02:55.6]} 10... Nbd7 {[%clk 0:03:04.7]} 11. Bd3
{[%clk 0:02:36.7]} 11... c5 {[%clk 0:03:02.9]} 12. Ne2 {[%clk 0:02:37.4]} 12...
cxd4 {[%clk 0:03:02.3]} 13. Nxd4 {[%clk 0:02:36.1]} 13... Rc8 {[%clk 0:03:00.7]}
14. O-O {[%clk 0:02:26.7]} 14... dxc4 {[%clk 0:02:56.4]} 15. Bc2 {[%clk
0:02:25.3]} 15... a6 {[%clk 0:02:54.9]} 16. Rad1 {[%clk 0:02:24.5]} 16... Qe7
{[%clk 0:02:55.9]} 17. e4 {[%clk 0:02:19.6]} 17... b5 {[%clk 0:02:55.8]} 18.
Rfe1 {[%clk 0:02:19.7]} 18... Rfe8 {[%clk 0:02:37.5]} 19. Bb1 {[%clk 0:01:26.9]}
19... Qc5 {[%clk 0:02:30.6]} 20. Bf2 {[%clk 0:01:26]} 20... Qc7 {[%clk
0:02:08.8]} 21. Bg3 {[%clk 0:01:24.6]} 21... e5 {[%clk 0:02:09.5]} 22. Nf5
{[%clk 0:01:24.9]} 22... Re6 {[%clk 0:02:00.4]} 23. Rd2 {[%clk 0:01:06]} 23...
Nc5 {[%clk 0:01:52.1]} 24. Red1 {[%clk 0:01:01.3]} 24... Nb3 {[%clk 0:01:46.9]}
25. Rd6 {[%clk 0:00:51.5]} 25... Rxd6 {[%clk 0:01:44.6]} 26. Nxd6 {[%clk
0:00:51.8]} 26... Nd4 {[%clk 0:01:36.3]} 27. Rxd4 {[%clk 0:00:45.2]} 27... exd4
{[%clk 0:01:35.7]} 28. Nxc8 {[%clk 0:00:42.7]} 28... Qxg3 {[%clk 0:00:49.6]} 29.
Ne7+ {[%clk 0:00:42.3]} 29... Kf8 {[%clk 0:00:47.2]} 30. Qb4 {[%clk 0:00:29.4]}
30... Qg5 {[%clk 0:00:37.4]} 31. Ng6+ {[%clk 0:00:15.5]} 31... Kg8 {[%clk
0:00:35.9]} 32. Qf8+ {[%clk 0:00:16]} 32... Kh7 {[%clk 0:00:37]} 33. Qxf7 {[%clk
0:00:04.2]} 33... Qxg6 {[%clk 0:00:30.3]} 34. Qxb7 {[%clk 0:00:04.8]} 34... d3
{[%clk 0:00:30.9]} 35. Qc7 {[%clk 0:00:03.7]} 35... Qg5 {[%clk 0:00:31.4]} 36.
Qd6 {[%clk 0:00:02.6]} 36... Qe3+ {[%clk 0:00:31.2]} 37. Kf1 {[%clk 0:00:03.9]}
37... Qe2+ {[%clk 0:00:31.7]} 38. Kg1 {[%clk 0:00:04.6]} 38... Qe1# {[%clk
0:00:33.6]} 0-1

[Event "*** Biggest EVER Titled Tuesday"]
[Site "Chess.com"]
[Date "2018.04.17"]
[Round "3"]
[White "Paralinch"]
[Black "ChadBiryani"]
[Result "1-0"]
[WhiteElo "2810"]
[BlackElo "2246"]
[TimeControl "180+2"]
[EndTime "13:35:33 PDT"]
[Termination "Paralinch won by resignation"]

1. e4 {[%clk 0:03:01.9]} 1... c5 {[%clk 0:02:57.9]} 2. Nf3 {[%clk 0:03:02.8]}
2... d6 {[%clk 0:02:59]} 3. d4 {[%clk 0:03:03.8]} 3... cxd4 {[%clk 0:03:00.1]}
4. Nxd4 {[%clk 0:03:05.7]} 4... Nf6 {[%clk 0:03:01.6]} 5. Nc3 {[%clk 0:03:06.9]}
5... g6 {[%clk 0:03:02.2]} 6. Be3 {[%clk 0:03:07.3]} 6... a6 {[%clk 0:03:03.2]}
7. Be2 {[%clk 0:03:05.7]} 7... b5 {[%clk 0:03:03.4]} 8. Bf3 {[%clk 0:03:06.6]}
8... e5 {[%clk 0:03:00.2]} 9. Nb3 {[%clk 0:03:01.9]} 9... Bb7 {[%clk 0:03:00.7]}
10. a4 {[%clk 0:03:02.3]} 10... b4 {[%clk 0:02:57.9]} 11. Nd5 {[%clk 0:03:03.3]}
11... Nxd5 {[%clk 0:02:58.4]} 12. exd5 {[%clk 0:03:05.2]} 12... Nd7 {[%clk
0:02:54.9]} 13. Qd2 {[%clk 0:03:05.3]} 13... a5 {[%clk 0:02:50.9]} 14. Be2
{[%clk 0:03:00.7]} 14... Bg7 {[%clk 0:02:47.1]} 15. O-O {[%clk 0:03:00.1]} 15...
O-O {[%clk 0:02:47.3]} 16. Bb5 {[%clk 0:03:00.8]} 16... Nb6 {[%clk 0:02:38.9]}
17. Bc6 {[%clk 0:03:00]} 17... Nc4 {[%clk 0:02:34.9]} 18. Qe2 {[%clk 0:02:59.9]}
18... Nxe3 {[%clk 0:02:35.5]} 19. Qxe3 {[%clk 0:02:50.4]} 19... Bxc6 {[%clk
0:02:32.8]} 20. dxc6 {[%clk 0:02:52.3]} 20... Qc7 {[%clk 0:02:34.2]} 21. c3
{[%clk 0:02:43.8]} 21... Qxc6 {[%clk 0:02:29.7]} 22. cxb4 {[%clk 0:02:45]} 22...
axb4 {[%clk 0:02:31.2]} 23. Rfc1 {[%clk 0:02:46.1]} 23... Qb7 {[%clk 0:02:24.7]}
24. a5 {[%clk 0:02:47.1]} 24... Ra6 {[%clk 0:02:24]} 25. Rc2 {[%clk 0:02:43.1]}
25... Rfa8 {[%clk 0:02:21.6]} 26. Rac1 {[%clk 0:02:43.9]} 26... h6 {[%clk
0:02:08.2]} 27. h4 {[%clk 0:02:43.7]} 27... Qd5 {[%clk 0:02:08.9]} 28. h5 {[%clk
0:02:40.2]} 28... g5 {[%clk 0:02:05.2]} 29. f3 {[%clk 0:02:23.6]} 29... Re8
{[%clk 0:01:52.2]} 30. Rd2 {[%clk 0:02:06]} 30... Qe6 {[%clk 0:01:41.3]} 31. Qd3
{[%clk 0:02:01.5]} 31... Rea8 {[%clk 0:01:37.4]} 32. Qd5 {[%clk 0:01:59.3]}
32... Qf5 {[%clk 0:01:34.5]} 33. Rc7 {[%clk 0:01:52.8]} 33... Qf4 {[%clk
0:01:13]} 34. Qe4 {[%clk 0:01:44.6]} 34... Qxe4 {[%clk 0:01:07]} 35. fxe4 {[%clk
0:01:45.6]} 35... Bf8 {[%clk 0:01:08.4]} 36. Rf2 {[%clk 0:01:43.7]} 36... d5
{[%clk 0:00:56.4]} 37. exd5 {[%clk 0:01:44.7]} 37... Rd8 {[%clk 0:00:55.7]} 38.
Rcxf7 {[%clk 0:01:42.8]} 38... Rad6 {[%clk 0:00:56.8]} 39. Nc5 {[%clk
0:01:20.7]} 39... Rxd5 {[%clk 0:00:38.8]} 40. Ne6 {[%clk 0:01:21.4]} 40... Rd1+
{[%clk 0:00:40.1]} 41. Kh2 {[%clk 0:01:22.3]} 41... Bc5 {[%clk 0:00:04.4]} 42.
Nxc5 {[%clk 0:01:07.9]} 1-0

[Event "*** Biggest EVER Titled Tuesday"]
[Site "Chess.com"]
[Date "2018.04.17"]
[Round "3"]
[White "twitchTriniCupid"]
[Black "Raffael89"]
[Result "0-1"]
[WhiteElo "2161"]
[BlackElo "2124"]
[TimeControl "180+2"]
[EndTime "13:35:39 PDT"]
[Termination "Raffael89 won by resignation"]

1. e4 {[%clk 0:03:01.9]} 1... c5 {[%clk 0:02:59.8]} 2. Nf3 {[%clk 0:03:02.9]}
2... Nc6 {[%clk 0:02:56.3]} 3. c4 {[%clk 0:03:04.1]} 3... g6 {[%clk 0:02:55.9]}
4. Nc3 {[%clk 0:03:05.2]} 4... Bg7 {[%clk 0:02:56.6]} 5. d3 {[%clk 0:03:05.7]}
5... d6 {[%clk 0:02:52.8]} 6. h3 {[%clk 0:03:06]} 6... Rb8 {[%clk 0:02:50.4]} 7.
Rb1 {[%clk 0:03:05.6]} 7... a6 {[%clk 0:02:50.4]} 8. Be2 {[%clk 0:02:47.2]} 8...
b5 {[%clk 0:02:48.6]} 9. Qc2 {[%clk 0:02:39]} 9... e6 {[%clk 0:02:44.4]} 10. O-O
{[%clk 0:02:39.2]} 10... Nge7 {[%clk 0:02:44.9]} 11. Bg5 {[%clk 0:02:39.9]}
11... h6 {[%clk 0:02:44.3]} 12. Bf4 {[%clk 0:02:40]} 12... O-O {[%clk
0:02:39.2]} 13. Qd2 {[%clk 0:02:39.7]} 13... Kh7 {[%clk 0:02:38.5]} 14. Rfc1
{[%clk 0:02:34.5]} 14... bxc4 {[%clk 0:02:20.8]} 15. dxc4 {[%clk 0:02:34]} 15...
Nd4 {[%clk 0:02:22.3]} 16. Bd1 {[%clk 0:01:57.7]} 16... Nec6 {[%clk 0:02:20.1]}
17. Nxd4 {[%clk 0:01:51.9]} 17... Nxd4 {[%clk 0:02:19.9]} 18. Ne2 {[%clk
0:01:45.2]} 18... e5 {[%clk 0:02:13.4]} 19. Nxd4 {[%clk 0:01:42.7]} 19... cxd4
{[%clk 0:01:58.7]} 20. Bg3 {[%clk 0:01:37.9]} 20... f5 {[%clk 0:01:58.7]} 21.
exf5 {[%clk 0:01:33.4]} 21... gxf5 {[%clk 0:02:00.6]} 22. Bc2 {[%clk 0:01:30.2]}
22... Kh8 {[%clk 0:01:54.8]} 23. c5 {[%clk 0:01:21.9]} 23... dxc5 {[%clk
0:01:42]} 24. Bd3 {[%clk 0:01:22.6]} 24... Qd5 {[%clk 0:01:29.5]} 25. Bc4 {[%clk
0:01:19.5]} 25... Qc6 {[%clk 0:01:26.3]} 26. Re1 {[%clk 0:01:17.7]} 26... Bb7
{[%clk 0:01:26.1]} 27. Bf1 {[%clk 0:01:18.1]} 27... Rbe8 {[%clk 0:01:23.7]} 28.
Qa5 {[%clk 0:01:07.4]} 28... f4 {[%clk 0:01:21.1]} 29. Bh4 {[%clk 0:00:56.7]}
29... e4 {[%clk 0:01:18.9]} 30. Rbc1 {[%clk 0:00:52.8]} 30... Re5 {[%clk
0:01:08]} 31. b4 {[%clk 0:00:53.2]} 31... c4 {[%clk 0:01:06.6]} 32. Rxc4 {[%clk
0:00:45.9]} 32... Rxa5 {[%clk 0:00:53.1]} 33. Rxc6 {[%clk 0:00:46.2]} 33... Bxc6
{[%clk 0:00:51.3]} 34. bxa5 {[%clk 0:00:46.3]} 34... d3 {[%clk 0:00:52.3]} 35.
Rc1 {[%clk 0:00:33.9]} 35... Ba4 {[%clk 0:00:51.1]} 36. Rc5 {[%clk 0:00:27.6]}
36... d2 {[%clk 0:00:35.9]} 37. Rd5 {[%clk 0:00:28.3]} 37... d1=Q {[%clk
0:00:34.9]} 38. Rxd1 {[%clk 0:00:29.3]} 38... Bxd1 {[%clk 0:00:36.7]} 39. Bxa6
{[%clk 0:00:30.5]} 39... Ra8 {[%clk 0:00:33.5]} 40. Bb7 {[%clk 0:00:31.5]} 40...
Rxa5 {[%clk 0:00:28.1]} 41. Bxe4 {[%clk 0:00:32.1]} 41... Rxa2 {[%clk
0:00:28.7]} 42. g3 {[%clk 0:00:29.7]} 42... f3 {[%clk 0:00:28.1]} 0-1